fUSD/lending_fUSD_20250616
["ID","MTS","AMOUNT","RATE_DAILY","PERIOD"]
[366102922,1750063842962,-421.36999699,0.00016438,2]
[366102924,1750063842972,-490.0,0.00016438,2]
[366102926,1750063842982,-546.82,0.00016438,2]
[366102928,1750063842992,-490.0,0.00016438,2]
[366102930,1750063843002,-490.0,0.00016438,2]
[366102932,1750063843012,-1299.02,0.00016438,2]
[366102934,1750063843021,-460.67086211,0.00016438,2]
[366102935,1750063843032,-490.0,0.00016438,2]
[366102936,1750063843042,-490.0,0.00016438,2]
[366102937,1750063843053,-490.0,0.00016438,2]
[366102938,1750063843062,-3376.49,0.00016438,2]
[366102939,1750063843072,-1070.9,0.00016438,2]
[366102940,1750063843083,-490.0,0.00016438,2]
[366102941,1750063843093,-490.0,0.00016438,2]
[366102943,1750063843103,-490.0,0.00016438,2]
[366102945,1750063843112,-668.3,0.00016438,2]
[366102946,1750063843122,-490.0,0.00016438,2]
[366102949,1750063843131,-490.0,0.00016438,2]
[366102951,1750063843141,-490.0,0.00016438,2]
[366102953,1750063843150,-373.79987245,0.00016438,2]
[366102955,1750063843160,-1660.72,0.00016438,2]
[366102958,1750063843169,-490.0,0.00016438,2]
[366102960,1750063843179,-535.61,0.00016438,2]
[366102962,1750063843188,-490.0,0.00016438,2]
[366102964,1750063843197,-4086.83,0.00016438,2]
[366102966,1750063843206,-1018.62,0.00016438,2]
[366102968,1750063843216,-1838.38,0.00016438,2]
[366102970,1750063843226,-643.76,0.00016438,2]
[366102971,1750063843235,-1672.64,0.00016438,2]
[366102973,1750063843245,-2200.83,0.00016438,2]
[366102975,1750063843254,-490.0,0.00016438,2]
[366102977,1750063843264,-490.0,0.00016438,2]
[366102979,1750063843274,-490.0,0.00016438,2]
[366102981,1750063843284,-994.6,0.00016438,2]
[366102983,1750063843293,-1035.27,0.00016438,2]
[366102985,1750063843303,-578.39,0.00016438,2]
[366102988,1750063843313,-1375.97,0.00016438,2]
[366102990,1750063843323,-405.66006389,0.00016438,2]
[366102992,1750063843334,-502.65,0.00016438,2]
[366102994,1750063843345,-629.0,0.00016438,2]
[366102996,1750063843355,-913.25,0.00016438,2]
[366102998,1750063843364,-1134.4,0.00016438,2]
[366103000,1750063843374,-572.81,0.00016438,2]
[366103002,1750063843384,-3633.92,0.00016438,2]
[366103004,1750063843393,-5534.955486,0.00016438,2]
[366103006,1750063843403,-490.0,0.00016438,2]
[366103008,1750063843413,-490.0,0.00016438,2]
[366103010,1750063843422,-490.0,0.00016438,2]
[366103012,1750063843433,-1409.52,0.00016438,2]
[366103014,1750063843443,-2884.12,0.00016438,2]
[366103015,1750063843454,-2322.48,0.00016438,2]
[366103017,1750063843465,-490.0,0.00016438,2]
[366103020,1750063843475,-16919.69,0.00016438,2]
[366103021,1750063843486,-490.0,0.00016438,2]
[366103023,1750063843496,-490.0,0.00016438,2]
[366103026,1750063843507,-490.0,0.00016438,2]
[366103028,1750063843517,-1751.95,0.00016438,2]
[366103030,1750063843527,-845.78,0.00016438,2]
[366103032,1750063843538,-1084.82,0.00016438,2]
[366103034,1750063843547,-500.0,0.00016438,2]
[366103035,1750063843557,-490.0,0.00016438,2]
[366103037,1750063843566,-500.0,0.00016438,2]
[366103039,1750063843576,-661.05,0.00016438,2]
[366103041,1750063843590,-500.0,0.00016438,2]
[366103043,1750063843600,-490.0,0.00016438,2]
[366103045,1750063843610,-7391.8,0.00016438,2]
[366103047,1750063843620,-6250.97,0.00016438,2]
[366103049,1750063843629,-490.0,0.00016438,2]
[366103051,1750063843639,-851.52,0.00016438,2]
[366103053,1750063843650,-490.0,0.00016438,2]
[366103055,1750063843659,-490.0,0.00016438,2]
[366103057,1750063843668,-517.4,0.00016438,2]
[366103059,1750063843678,-490.0,0.00016438,2]
[366103061,1750063843688,-2740.7,0.00016438,2]
[366103063,1750063843697,-490.0,0.00016438,2]
[366103065,1750063843707,-490.0,0.00016438,2]
[366103067,1750063843716,-499.95443992,0.00016438,2]
[366103069,1750063843726,-917.62,0.00016438,2]
[366103071,1750063843735,-1472.43,0.00016438,2]
[366103073,1750063843745,-8001.05,0.00016438,2]
[366103075,1750063843754,-1220.5,0.00016438,2]
[366103077,1750063843763,-490.0,0.00016438,2]
[366103079,1750063843773,-539.36,0.00016438,2]
[366103081,1750063843783,-1367.4,0.00016438,2]
[366103083,1750063843792,-490.0,0.00016438,2]
[366103085,1750063843805,-2200.89,0.00016438,2]
[366103087,1750063843815,-490.0,0.00016438,2]
[366103089,1750063843825,-490.0,0.00016438,2]
[366103091,1750063843836,-490.0,0.00016438,2]
[366103093,1750063843846,-490.0,0.00016438,2]
[366103095,1750063843855,-4890.65,0.00016438,2]
[366103096,1750063843865,-490.0,0.00016438,2]
[366103098,1750063843875,-490.0,0.00016438,2]
[366103101,1750063843886,-451.2024598,0.00016438,2]
[366103102,1750063843895,-881.13,0.00016438,2]
[366103104,1750063843905,-490.0,0.00016438,2]
[366103106,1750063843914,-493.69,0.00016438,2]
[366103108,1750063843924,-2975.37,0.00016438,2]
[366103110,1750063843934,-544.47951432,0.00016438,2]
[366103112,1750063843943,-490.0,0.00016438,2]
[366103115,1750063843953,-490.0,0.00016438,2]
[366103116,1750063843963,-2221.37,0.00016438,2]
[366103119,1750063843972,-490.0,0.00016438,2]
[366103121,1750063843984,-490.0,0.00016438,2]
[366103123,1750063843993,-490.0,0.00016438,2]
[366103125,1750063844002,-490.0,0.00016438,2]
[366103127,1750063844012,-512.02,0.00016438,2]
[366103129,1750063844021,-1005.27,0.00016438,2]
[366103131,1750063844031,-14580.57,0.00016438,2]
[366103133,1750063844040,-8690.06,0.00016438,2]
[366103135,1750063844050,-935.26,0.00016438,2]
[366103137,1750063844059,-2132.19,0.00016438,2]
[366103139,1750063844069,-2408.74,0.00016438,2]
[366103141,1750063844082,-490.0,0.00016438,2]
[366103143,1750063844091,-490.0,0.00016438,2]
[366103145,1750063844101,-3961.87,0.00016438,2]
[366103147,1750063844110,-1544.95,0.00016438,2]
[366103149,1750063844119,-3975.41,0.00016438,2]
[366103151,1750063844129,-7709.53,0.00016438,2]
[366103153,1750063844138,-2504.54,0.00016438,2]
[366103155,1750063844148,-490.0,0.00016438,2]
[366103157,1750063844157,-1511.14,0.00016438,2]
[366103159,1750063844167,-1106.87,0.00016438,2]
[366103161,1750063844176,-490.0,0.00016438,2]
[366103163,1750063844185,-230.448563,0.00016438,2]
[366103165,1750063844194,-1374.24,0.00016438,2]
[366103167,1750063844203,-4072.35,0.00016438,2]
[366103169,1750063844212,-576.92,0.00016438,2]
[366103171,1750063844222,-1826.31,0.00016438,2]
[366103173,1750063844234,-1413.34,0.00016438,2]
[366103175,1750063844243,-927.05,0.00016438,2]
[366103177,1750063844253,-1312.15,0.00016438,2]
[366103179,1750063844262,-490.0,0.00016438,2]
[366103180,1750063844272,-1269.62,0.00016438,2]
[366103182,1750063844281,-4364.95,0.00016438,2]
[366103184,1750063844290,-490.0,0.00016438,2]
[366103186,1750063844299,-1202.46,0.00016438,2]
[366103188,1750063844308,-964.97,0.00016438,2]
[366103190,1750063844317,-490.0,0.00016438,2]
[366103192,1750063844327,-1979.05,0.00016438,2]
[366103194,1750063844337,-490.0,0.00016438,2]
[366103196,1750063844346,-490.0,0.00016438,2]
[366103198,1750063844355,-490.0,0.00016438,2]
[366103200,1750063844365,-1200.81,0.00016438,2]
[366103202,1750063844374,-1231.87,0.00016438,2]
[366103204,1750063844384,-490.0,0.00016438,2]
[366103206,1750063844393,-841.83,0.00016438,2]
[366103208,1750063844402,-490.0,0.00016438,2]
[366103210,1750063844411,-490.0,0.00016438,2]
[366103212,1750063844421,-602.11,0.00016438,2]
[366103214,1750063844430,-490.0,0.00016438,2]
[366103216,1750063844438,-2143.93,0.00016438,2]
[366103218,1750063844448,-516.75,0.00016438,2]
[366103220,1750063844457,-2409.22,0.00016438,2]
[366103222,1750063844467,-495.66,0.00016438,2]
[366103224,1750063844476,-490.0,0.00016438,2]
[366103226,1750063844485,-2153.47,0.00016438,2]
[366103228,1750063844495,-490.0,0.00016438,2]
[366103230,1750063844504,-3302.18,0.00016438,2]
[366103232,1750063844513,-490.0,0.00016438,2]
[366103234,1750063844522,-1852.78,0.00016438,2]
[366103236,1750063844532,-490.0,0.00016438,2]
[366103238,1750063844543,-1674.09,0.00016438,2]
[366103240,1750063844552,-1116.86,0.00016438,2]
[366103242,1750063844562,-801.36,0.00016438,2]
[366103244,1750063844571,-490.0,0.00016438,2]
[366103246,1750063844581,-737.14,0.00016438,2]
[366103248,1750063844590,-1167.77,0.00016438,2]
[366103250,1750063844599,-4029.25,0.00016438,2]
[366103252,1750063844609,-918.64,0.00016438,2]
[366103254,1750063844618,-500.0,0.00016438,2]
[366103256,1750063844627,-500.0,0.00016438,2]
[366103258,1750063844636,-490.0,0.00016438,2]
[366103260,1750063844645,-1570.19,0.00016438,2]
[366103262,1750063844655,-490.0,0.00016438,2]
[366103264,1750063844663,-1980.67,0.00016438,2]
[366103266,1750063844673,-3436.59,0.00016438,2]
[366103268,1750063844682,-5598.92,0.00016438,2]
[366103270,1750063844691,-490.0,0.00016438,2]
[366103272,1750063844700,-1032.01,0.00016438,2]
[366103274,1750063844709,-2312.55,0.00016438,2]
[366103276,1750063844718,-490.0,0.00016438,2]
[366103278,1750063844727,-526.79,0.00016438,2]
[366103280,1750063844736,-490.0,0.00016438,2]
[366103282,1750063844745,-490.0,0.00016438,2]
[366103284,1750063844753,-1997.0,0.00016438,2]
[366103286,1750063844762,-490.0,0.00016438,2]
[366103288,1750063844771,-490.0,0.00016438,2]
[366103290,1750063844780,-839.57,0.00016438,2]
[366103292,1750063844790,-1030.75,0.00016438,2]
[366103294,1750063844799,-490.0,0.00016438,2]
[366103296,1750063844810,-490.0,0.00016438,2]
[366103298,1750063844819,-490.0,0.00016438,2]
[366103300,1750063844828,-515.64,0.00016438,2]
[366103302,1750063844837,-21051.83,0.00016438,2]
[366103303,1750063844847,-1731.39,0.00016438,2]
[366103305,1750063844856,-490.0,0.00016438,2]
[366103307,1750063844865,-1145.47,0.00016438,2]
[366103309,1750063844875,-1389.01,0.00016438,2]
[366103311,1750063844893,-926.29,0.00016438,2]
[366103313,1750063844902,-1454.64,0.00016438,2]
[366103315,1750063844912,-490.0,0.00016438,2]
[366103317,1750063844921,-490.0,0.00016438,2]
[366103319,1750063844931,-4705.42,0.00016438,2]
[366103321,1750063844940,-1412.9,0.00016438,2]
[366103323,1750063844949,-490.0,0.00016438,2]
[366103325,1750063844958,-566.6,0.00016438,2]
[366103327,1750063844968,-784.17,0.00016438,2]
[366103329,1750063844979,-520.73,0.00016438,2]
[366103331,1750063844988,-1599.47,0.00016438,2]
[366103333,1750063844997,-1742.77,0.00016438,2]
[366103335,1750063845008,-1641.74,0.00016438,2]
[366103337,1750063845017,-508.26,0.00016438,2]
[366103339,1750063845027,-2180.53,0.00016438,2]
[366103341,1750063845037,-900.54,0.00016438,2]
[366103343,1750063845046,-490.0,0.00016438,2]
[366103345,1750063845055,-1739.25,0.00016438,2]
[366103347,1750063845065,-1678.99,0.00016438,2]
[366103349,1750063845075,-490.0,0.00016438,2]
[366103351,1750063845085,-3294.06,0.00016438,2]
[366103353,1750063845094,-1128.79,0.00016438,2]
[366103355,1750063845104,-490.0,0.00016438,2]
[366103357,1750063845113,-2038.8,0.00016438,2]
[366103359,1750063845123,-732.33,0.00016438,2]
[366103361,1750063845132,-1762.23,0.00016438,2]
[366103364,1750063845143,-736.17,0.00016438,2]
[366103365,1750063845153,-607.39,0.00016438,2]
[366103367,1750063845164,-490.0,0.00016438,2]
[366103369,1750063845174,-477.26711621,0.00016438,2]
[366103372,1750063845184,-490.0,0.00016438,2]
[366103373,1750063845193,-6040.02,0.00016438,2]
[366103375,1750063845203,-1456.49,0.00016438,2]
[366103377,1750063845212,-2157.27,0.00016438,2]
[366103379,1750063845222,-504.72,0.00016438,2]
[366103391,1750063845422,-490.0,0.00016438,2]
[366103393,1750063845433,-554.9,0.00016438,2]
[366103395,1750063845442,-490.0,0.00016438,2]
[366103397,1750063845453,-490.0,0.00016438,2]
[366103399,1750063845463,-1069.28,0.00016438,2]
[366103401,1750063845473,-2817.01,0.00016438,2]
[366103403,1750063845483,-1585.02,0.00016438,2]
[366103405,1750063845492,-490.0,0.00016438,2]
[366103407,1750063845502,-490.0,0.00016438,2]
[366103409,1750063845511,-938.66,0.00016438,2]
[366103411,1750063845521,-1194.1,0.00016438,2]
[366103413,1750063845530,-490.0,0.00016438,2]
[366103415,1750063845540,-2370.61,0.00016438,2]
[366103417,1750063845549,-9027.69,0.00016438,2]
[366103419,1750063845559,-594.85,0.00016438,2]
[366103421,1750063845569,-502.20515958,0.00016438,2]
[366103423,1750063845579,-490.0,0.00016438,2]
[366103425,1750063845589,-680.94,0.00016438,2]
[366103427,1750063845600,-496.73142014,0.00016438,2]
[366103429,1750063845610,-1158.32,0.00016438,2]
[366103431,1750063845619,-423.66342971,0.00016438,2]
[366103433,1750063845629,-764.81,0.00016438,2]
[366103435,1750063845639,-622.33,0.00016438,2]
[366103438,1750063845649,-3303.0,0.00016438,2]
[366103440,1750063845659,-490.0,0.00016438,2]
[366103442,1750063845669,-490.0,0.00016438,2]
[366103444,1750063845678,-506.86804404,0.00016438,2]
[366103446,1750063845688,-9595.54,0.00016438,2]
[366103448,1750063845698,-490.0,0.00016438,2]
[366103450,1750063845707,-266.58323733,0.00016438,2]
[366103452,1750063845717,-490.0,0.00016438,2]
[366103454,1750063845727,-731.74,0.00016438,2]
[366103456,1750063845736,-1367.67,0.00016438,2]
[366103458,1750063845746,-490.0,0.00016438,2]
[366103460,1750063845755,-713.6,0.00016438,2]
[366103462,1750063845765,-703.22,0.00016438,2]
[366103464,1750063845774,-6892.85,0.00016438,2]
[366103466,1750063845783,-490.0,0.00016438,2]
[366103468,1750063845793,-490.0,0.00016438,2]
[366103470,1750063845806,-1493.83,0.00016438,2]
[366103472,1750063845816,-3718.92,0.00016438,2]
[366103474,1750063845826,-490.0,0.00016438,2]
[366103476,1750063845838,-792.7,0.00016438,2]
[366103478,1750063845850,-490.0,0.00016438,2]
[366103480,1750063845859,-490.0,0.00016438,2]
[366103482,1750063845869,-490.0,0.00016438,2]
[366103484,1750063845879,-490.0,0.00016438,2]
[366103486,1750063845890,-955.56,0.00016438,2]
[366103488,1750063845900,-1039.13,0.00016438,2]
[366103490,1750063845909,-5698.72,0.00016438,2]
[366103492,1750063845920,-356.43569014,0.00016438,2]
[366103494,1750063845929,-2794.73,0.00016438,2]
[366103496,1750063845939,-1182.86,0.00016438,2]
[366103498,1750063845949,-490.0,0.00016438,2]
[366103500,1750063845963,-1157.1,0.00016438,2]
[366103502,1750063845974,-520.77,0.00016438,2]
[366103505,1750063845984,-837.73,0.00016438,2]
[366103507,1750063845994,-596.18,0.00016438,2]
[366103510,1750063846004,-1155.55,0.00016438,2]
[366103514,1750063846014,-1076.95,0.00016438,2]
[366103517,1750063846024,-490.0,0.00016438,2]
[366103519,1750063846035,-765.75,0.00016438,2]
[366103521,1750063846044,-988.28,0.00016438,2]
[366103523,1750063846054,-490.0,0.00016438,2]
[366103525,1750063846064,-1105.6,0.00016438,2]
[366103527,1750063846073,-953.85,0.00016438,2]
[366103529,1750063846084,-490.0,0.00016438,2]
[366103531,1750063846094,-16786.68,0.00016438,2]
[366103533,1750063846103,-1018.64,0.00016438,2]
[366103535,1750063846112,-490.0,0.00016438,2]
[366103537,1750063846122,-490.0,0.00016438,2]
[366103539,1750063846131,-490.0,0.00016438,2]
[366103541,1750063846141,-2222.92,0.00016438,2]
[366103543,1750063846151,-762.09,0.00016438,2]
[366103545,1750063846161,-785.79,0.00016438,2]
[366103547,1750063846170,-500.0,0.00016438,2]
[366103549,1750063846179,-3081.537846,0.00016438,2]
[366103551,1750063846189,-900.64,0.00016438,2]
[366103553,1750063846199,-591.97733761,0.00016438,2]
[366103555,1750063846209,-500.0,0.00016438,2]
[366103557,1750063846219,-2573.12,0.00016438,2]
[366103559,1750063846228,-2880.73,0.00016438,2]
[366103560,1750063846237,-1003.75,0.00016438,2]
[366103563,1750063846247,-490.0,0.00016438,2]
[366103565,1750063846257,-3263.3,0.00016438,2]
[366103567,1750063846267,-585.6,0.00016438,2]
[366103569,1750063846277,-1839.12,0.00016438,2]
[366103571,1750063846287,-3563.65,0.00016438,2]
[366103573,1750063846296,-1413.9,0.00016438,2]
[366103575,1750063846306,-1064.48,0.00016438,2]
[366103577,1750063846315,-490.0,0.00016438,2]
[366103579,1750063846325,-150.0,0.00016438,2]
[366103581,1750063846336,-1193.62078445,0.00016448,2]
[366103583,1750063846346,-150.0,0.00016468,2]
[366103585,1750063846355,-150.0,0.00016471,2]
[366103587,1750063846365,-150.0,0.00016472,2]
[366103589,1750063846375,-150.0,0.00016475,2]
[366103591,1750063846384,-150.0,0.00016476,2]
[366103593,1750063846393,-150.0,0.00016483,2]
[366103595,1750063846403,-150.0,0.00016484,2]
[366103597,1750063846412,-150.0,0.00016485,2]
[366103599,1750063846422,-150.0,0.00016486,2]
[366103601,1750063846431,-150.0,0.00016487,2]
[366103603,1750063846442,-500.1411907,0.00016488,2]
[366103605,1750063846452,-150.0,0.00016494,2]
[366103608,1750063846461,-150.0,0.00016495,2]
[366103610,1750063846472,-1491.0,0.000165,2]
[366103612,1750063846481,-204.50042989,0.00016502,2]
[366103614,1750063846492,-162.74938912,0.00016502,2]
[366103615,1750063846504,-177.87419577,0.00016502,2]
[366103618,1750063846514,-1193.62078445,0.00016502,2]
[366103620,1750063846524,-150.0,0.00016503,2]
[366103622,1750063846533,-150.0,0.00016505,2]
[366103624,1750063846543,-150.0,0.00016508,2]
[366103626,1750063846552,-150.0,0.00016517,2]
[366103628,1750063846562,-150.0,0.0001652,2]
[366103629,1750063846571,-150.0,0.00016525,2]
[366103632,1750063846582,-126.7679239,0.00016527,2]
[366103714,1750063847476,-522.5,0.000164,2]
[366103717,1750063847502,-477.5,0.000164,2]
[366103719,1750063847512,-155.7,0.000164,3]
[366103722,1750063847523,-479.3,0.000164,3]
[366103724,1750063847533,-490.0,0.00016438,2]
[366103726,1750063847543,-23.2320761,0.00016527,2]
[366103763,1750063847898,-811.72403002,0.00016527,2]
[366103767,1750063847938,-22.09159978,0.00016527,2]
[366103769,1750063847948,-815.72640022,0.00016529,2]
[366103772,1750063847967,-1524.345,0.00016529,2]
[366103775,1750063847983,-17338.70937352,0.00016529,2]
[366103777,1750063847993,-500.0,0.0001653,2]
[366103779,1750063848003,-500.0,0.0001653,2]
[366103781,1750063848012,-150.0,0.00016531,2]
[366103783,1750063848022,-455.21597687,0.00016531,2]
[366103785,1750063848031,-150.0,0.00016541,2]
[366103787,1750063848042,-150.0,0.00016548,2]
[366103789,1750063848052,-150.0,0.00016549,2]
[366103791,1750063848062,-150.0,0.00016553,2]
[366103793,1750063848072,-150.0,0.00016554,2]
[366103795,1750063848082,-150.0,0.00016555,2]
[366103797,1750063848093,-1193.62078445,0.00016557,2]
[366103799,1750063848103,-150.0,0.00016559,2]
[366103801,1750063848113,-150.0,0.00016563,2]
[366103803,1750063848124,-150.0,0.00016565,2]
[366103805,1750063848134,-150.0,0.00016565,2]
[366103807,1750063848145,-204.50042987,0.00016568,2]
[366103809,1750063848155,-150.0,0.0001657,2]
[366103811,1750063848165,-150.0,0.00016571,2]
[366103813,1750063848175,-150.0,0.00016575,2]
[366103815,1750063848185,-505.10372321,0.00016576,2]
[366103817,1750063848196,-150.0,0.00016578,2]
[366103819,1750063848206,-150.0,0.00016579,2]
[366103821,1750063848216,-150.0,0.00016582,2]
[366103823,1750063848226,-150.0,0.00016584,2]
[366103824,1750063848235,-150.0,0.00016585,2]
[366103826,1750063848245,-150.0,0.00016591,2]
[366103827,1750063848255,-160.97116267,0.00016592,2]
[366103828,1750063848265,-150.0,0.00016594,2]
[366103829,1750063848275,-150.0,0.00016599,2]
[366103830,1750063848285,-1776.93,0.000166,2]
[366103831,1750063848296,-1282.88770271,0.000166,2]
[366103832,1750063848322,-1717.11229729,0.000166,2]
[366103833,1750063848333,-3000.0,0.000166,2]
[366103834,1750063848344,-3000.0,0.000166,2]
[366103835,1750063848354,-195.7379617,0.000166,2]
[366103883,1750063849723,-280.45,0.00016438,2]
[366103884,1750063849737,-209.55,0.00016438,2]
[366103885,1750063849747,-368.8192921,0.00016438,2]
[366103886,1750063849762,-1141.3607079,0.00016438,2]
[366103887,1750063849772,-399.88265049,0.00016438,2]
[366103888,1750063849789,-90.11734951,0.00016438,2]
[366103889,1750063849798,-2200.89239392,0.000166,2]
[366103890,1750063849813,-603.36964438,0.000166,2]
[366103891,1750063849822,-3000.02,0.000166,2]
[366103892,1750063849833,-214.68,0.00016601,2]
[366103893,1750063849843,-471.88797676,0.00016601,2]
[366103894,1750063849855,-151.0,0.00016602,2]
[366103895,1750063849865,-151.0,0.00016602,2]
[366103896,1750063849875,-448.803192,0.00016602,2]
[366103897,1750063849887,-448.803192,0.00016602,2]
[366103898,1750063849897,-151.0,0.00016602,2]
[366103899,1750063849909,-151.0,0.00016602,2]
[366103900,1750063849920,-151.0,0.00016602,2]
[366103901,1750063849929,-151.0,0.00016602,2]
[366103902,1750063849939,-564.89,0.00016602,2]
[366103903,1750063849948,-606.26,0.00016602,2]
[366103904,1750063849959,-490.0,0.00016602,2]
[366103905,1750063849970,-490.0,0.00016602,2]
[366103906,1750063849980,-490.0,0.00016602,2]
[366103907,1750063849990,-490.0,0.00016602,2]
[366103908,1750063850002,-490.0,0.00016602,2]
[366103909,1750063850014,-568.5,0.00016602,2]
[366103910,1750063850025,-490.0,0.00016602,2]
[366103911,1750063850036,-490.0,0.00016602,2]
[366103912,1750063850046,-490.0,0.00016602,2]
[366103913,1750063850055,-490.0,0.00016602,2]
[366103914,1750063850065,-528.88,0.00016602,2]
[366103915,1750063850075,-490.0,0.00016602,2]
[366103916,1750063850089,-490.0,0.00016602,2]
[366103917,1750063850099,-490.0,0.00016602,2]
[366103918,1750063850108,-490.0,0.00016602,2]
[366103919,1750063850118,-246.91465637,0.00016602,2]
[366103920,1750063850127,-490.0,0.00016602,2]
[366103921,1750063850136,-490.0,0.00016602,2]
[366103922,1750063850148,-490.0,0.00016602,2]
[366103923,1750063850157,-490.0,0.00016602,2]
[366103924,1750063850166,-574.83,0.00016602,2]
[366103925,1750063850176,-490.0,0.00016602,2]
[366103926,1750063850186,-164.41010735,0.00016602,2]
[366103927,1750063850195,-504.65,0.00016602,2]
[366103928,1750063850205,-490.0,0.00016602,2]
[366103929,1750063850215,-490.0,0.00016602,2]
[366103930,1750063850225,-490.0,0.00016602,2]
[366103931,1750063850235,-490.0,0.00016602,2]
[366103932,1750063850244,-490.0,0.00016602,2]
[366103933,1750063850253,-490.0,0.00016602,2]
[366103934,1750063850263,-981.23,0.00016602,2]
[366103935,1750063850273,-490.0,0.00016602,2]
[366103936,1750063850283,-490.0,0.00016602,2]
[366103937,1750063850292,-490.0,0.00016602,2]
[366103938,1750063850301,-649.21,0.00016602,2]
[366103939,1750063850311,-490.0,0.00016602,2]
[366103940,1750063850320,-504.3307236,0.00016602,2]
[366103941,1750063850330,-490.0,0.00016602,2]
[366103942,1750063850341,-490.0,0.00016602,2]
[366103943,1750063850350,-490.0,0.00016602,2]
[366103944,1750063850360,-490.0,0.00016602,2]
[366103945,1750063850369,-490.0,0.00016602,2]
[366103946,1750063850378,-490.0,0.00016602,2]
[366103947,1750063850387,-490.0,0.00016602,2]
[366103948,1750063850397,-97.222808,0.00016602,2]
[366103949,1750063850486,-645.75968916,0.00016602,2]
[366103950,1750063850498,-212.19750284,0.00016602,2]
[366103951,1750063850507,-490.0,0.00016602,2]
[366103952,1750063850516,-571.41,0.00016602,2]
[366103953,1750063850525,-490.0,0.00016602,2]
[366103954,1750063850535,-490.0,0.00016602,2]
[366103955,1750063850544,-490.0,0.00016602,2]
[366103956,1750063850553,-160.95351783,0.00016602,2]
[366103957,1750063850562,-490.0,0.00016602,2]
[366103958,1750063850571,-490.0,0.00016602,2]
[366103959,1750063850580,-1091.78,0.00016602,2]
[366103960,1750063850590,-395.88197933,0.00016602,2]
[366103963,1750063919156,257.0,0.0002465,120]
[366103966,1750063974465,1109.0,0.0002465,120]
[366103975,1750064163546,173.85,0.00013699,2]
[366103982,1750064342247,843.53,0.00015482,2]
[366103983,1750064346404,1000.0,0.00015482,2]
[366103997,1750064531817,139.37619029,0.00015289,2]
[366103998,1750064531846,63.62380971,0.00015289,2]
[366104001,1750064547752,314.38,0.00015455,2]
[366104002,1750064547947,314.38,0.00015459,2]
[366104003,1750064548350,314.38,0.00015463,2]
[366104004,1750064548757,314.38,0.00015467,2]
[366104005,1750064549166,314.38,0.00015471,2]
[366104006,1750064549367,314.38,0.00015475,2]
[366104007,1750064549575,314.38,0.00015479,2]
[366104008,1750064549765,314.38,0.00015483,2]
[366104009,1750064549959,314.38,0.00015487,2]
[366104010,1750064551265,-314.38,0.00015491,2]
[366104012,1750064553373,884.42,0.00015443,2]
[366104018,1750064582703,12656.93,0.0001517,2]
[366104021,1750064620487,3080.8292282,0.0001549,5]
[366104030,1750064714823,243.94270231,0.00014992,2]
[366104031,1750064714870,181.72680205,0.00014992,2]
[366104032,1750064727157,150.44568056,0.00014992,2]
[366104042,1750064788053,338.27,0.00015078,2]